Workbook

Sheet Результат
A1: OneGroup | B1: (Все)
C3: Данные
A4: Main | B4: WithIt | C4: Max Rate | D4: %Rate
A5: 177287 | B5: 89180/630/C | C5: 1 | D5: 1 | E5: =A5=B5 -> FALSE
A6: 177287 | B6: 177287 | C6: 1 | D6: 1 | E6: =A6=B6 -> TRUE
A7: 189320/7240 | B7: 189320/7240 | C7: 1 | D7: 1 | E7: TRUE
A8: 19sdp12/9s151 | B8: 19sdp12/9s151 | C8: 1 | D8: 1 | E8: TRUE
A9: 218403/1081 | B9: 218403/1081 | C9: 1 | D9: 1 | E9: TRUE
A10: 232656 | B10: 232656 | C10: 2 | D10: 1 | E10: TRUE
A11: 234959 | B11: 234959 | C11: 1 | D11: 1 | E11: TRUE
A12: 24047/черн. | B12: 24047/черн. | C12: 2 | D12: 1 | E12: TRUE
A13: 24047/черн. | B13: ANOUK/ | C13: 1 | D13: 0.5 | E13: FALSE
A14: 24047/черн. | B14: GU58098/00 | C14: 1 | D14: 0.5 | E14: FALSE
A15: 24047/черн. | B15: 2424/000 | C15: 1 | D15: 0.5 | E15: FALSE
A16: 2424/000 | B16: 2424/000 | C16: 1 | D16: 1 | E16: TRUE
A17: 2424/000 | B17: 24047/черн. | C17: 1 | D17: 1 | E17: FALSE
A18: 24253 | B18: 24253 | C18: 1 | D18: 1 | E18: TRUE
A19: 24253 | B19: B1169 | C19: 1 | D19: 1 | E19: FALSE
A20: 24253 | B20: 6152636 | C20: 1 | D20: 1 | E20: FALSE
A21: 245445 | B21: 245445 | C21: 1 | D21: 1 | E21: TRUE
A22: 254315 | B22: 254315 | C22: 3 | D22: 1 | E22: TRUE
A23: 256110 | B23: 256110 | C23: 1 | D23: 1 | E23: TRUE
A24: 269996/40 | B24: 269996/40 | C24: 1 | D24: 1 | E24: TRUE
A25: 31613/600654 | B25: 31613/600654 | C25: 1 | D25: 1 | E25: TRUE
A26: 406C | B26: 406C | C26: 1 | D26: 1 | E26: TRUE
A27: 406C | B27: 45365/98223чк | C27: 1 | D27: 1 | E27: FALSE
A28: 406C | B28: 440 | C28: 1 | D28: 1 | E28: FALSE
A29: 440 | B29: 406C | C29: 1 | D29: 1 | E29: FALSE
A30: 440 | B30: 45365/98223чк | C30: 1 | D30: 1 | E30: FALSE
A31: 440 | B31: 440 | C31: 1 | D31: 1 | E31: TRUE
A32: 45365/98223кк | B32: 45365/98223кк | C32: 1 | D32: 1 | E32: TRUE
A33: 45365/98223чк | B33: 406C | C33: 1 | D33: 1 | E33: FALSE
A34: 45365/98223чк | B34: 45365/98223чк | C34: 1 | D34: 1 | E34: TRUE
A35: 45365/98223чк | B35: 440 | C35: 1 | D35: 1 | E35: FALSE
A36: 460aktb999 | B36: 460aktb999 | C36: 1 | D36: 1 | E36: TRUE
A37: 5/36/90970 | B37: 5/36/90970 | C37: 1 | D37: 1 | E37: TRUE
A38: 50150033/026 | B38: 50150033/026 | C38: 1 | D38: 1 | E38: TRUE
A39: 56/622/999 | B39: 56/622/999 | C39: 2 | D39: 1 | E39: TRUE
A40: 6152636 | B40: 24253 | C40: 1 | D40: 1 | E40: FALSE
A41: 6152636 | B41: B1169 | C41: 1 | D41: 1 | E41: FALSE
A42: 6152636 | B42: 6152636 | C42: 1 | D42: 1 | E42: TRUE
A43: 6177398/черн. | B43: 6177398/черн. | C43: 1 | D43: 1 | E43: TRUE
A44: 6513 | B44: 6513 | C44: 1 | D44: 1 | E44: TRUE
A45: 72GC494 | B45: 31613/600654 | C45: 1 | D45: 1 | E45: FALSE
A46: 72GC494 | B46: ANOUK/ | C46: 1 | D46: 1 | E46: FALSE
A47: 72GC494 | B47: 72GC494 | C47: 1 | D47: 1 | E47: TRUE
A48: 89180/630/C | B48: 89180/630/C | C48: 1 | D48: 1 | E48: TRUE
A49: 89180/630/C | B49: 177287 | C49: 1 | D49: 1 | E49: FALSE
A50: 95/000 | B50: S49WP0018(SO99770) | C50: 1 | D50: 1 | E50: FALSE
A51: 95/000 | B51: 95/000 | C51: 1 | D51: 1 | E51: TRUE
A52: ANOUK/ | B52: ANOUK/ | C52: 2 | D52: 1 | E52: TRUE
A53: ANOUK/ | B53: 24047/черн. | C53: 1 | D53: 0.5 | E53: FALSE
A54: ANOUK/ | B54: GU58098/00 | C54: 1 | D54: 0.5 | E54: FALSE
A55: ANOUK/ | B55: 31613/600654 | C55: 1 | D55: 0.5 | E55: FALSE
A56: ANOUK/ | B56: 72GC494 | C56: 1 | D56: 0.5 | E56: FALSE
A57: B1169 | B57: 24253 | C57: 1 | D57: 1 | E57: FALSE
A58: B1169 | B58: B1169 | C58: 1 | D58: 1 | E58: TRUE
A59: B1169 | B59: 6152636 | C59: 1 | D59: 1 | E59: FALSE
A60: CH9094 | B60: CH9094 | C60: 1 | D60: 1 | E60: TRUE
A61: CSJ-NS-W-04 | B61: CSJ-NS-W-04 | C61: 1 | D61: 1 | E61: TRUE
A62: E1532 | B62: E1532 | C62: 1 | D62: 1 | E62: TRUE
A63: GU58098/00 | B63: 24047/черн. | C63: 1 | D63: 1 | E63: FALSE
A64: GU58098/00 | B64: GU58098/00 | C64: 1 | D64: 1 | E64: TRUE
A65: GU58098/00 | B65: ANOUK/ | C65: 1 | D65: 1 | E65: FALSE
A66: I36126/коричневый,синий | B66: I36126/коричневый,синий | C66: 1 | D66: 1 | E66: TRUE
A67: JS17040 | B67: JS17040 | C67: 1 | D67: 1 | E67: TRUE
A68: JULIE/02 | B68: JULIE/02 | C68: 2 | D68: 1 | E68: TRUE
A69: LF027/ | B69: LF027/ | C69: 1 | D69: 1 | E69: TRUE
A70: M2MG021 | B70: M2MG021 | C70: 2 | D70: 1 | E70: =A70=B70 -> TRUE
A71: R0000/00W09 | B71: R0000/00W09 | C71: 1 | D71: 1 | E71: TRUE
A72: S49WP0018(SO99770) | B72: S49WP0018(SO99770) | C72: 1 | D72: 1 | E72: TRUE
A73: S49WP0018(SO99770) | B73: 95/000 | C73: 1 | D73: 1 | E73: FALSE
A74: SMS17 | B74: SMS17 | C74: 1 | D74: 1 | E74: TRUE
A75: С12267 | B75: С12267 | C75: 1 | D75: 1 | E75: TRUE

Sheet Sales
A1: Check | B1: Article | C1: AGroup | D1: Amount
A2: =RANDBETWEEN(1,10) -> 3 | B2: M2MG021 | C2: топы | D2: 3120
A3: =RANDBETWEEN(1,10) -> 8 | B3: 189320/7240 | C3: туфли | D3: 10410
A4: 6 | B4: 6177398/черн. | C4: туфли | D4: 23700
A5: 1 | B5: M2MG021 | C5: топы | D5: 3120
A6: 1 | B6: 5/36/90970 | C6: сапоги | D6: 12870
A7: 4 | B7: LF027/ | C7: пиджаки | D7: 7000
A8: 3 | B8: JULIE/02 | C8: сандалии | D8: 2700
A9: 9 | B9: 56/622/999 | C9: повседневные платья | D9: 8190
A10: 7 | B10: 254315 | C10: вечерние платья | D10: 2070
A11: 4 | B11: 72GC494 | C11: туфли | D11: 1770
A12: 4 | B12: 19sdp12/9s151 | C12: джинсы | D12: 4590
A13: 2 | B13: 95/000 | C13: вечерние платья | D13: 16860
A14: 3 | B14: 6152636 | C14: туфли | D14: 6240
A15: 7 | B15: E1532 | C15: туфли | D15: 3300
A16: 9 | B16: 2424/000 | C16: туфли | D16: 6960
A17: 9 | B17: 45365/98223кк | C17: ботинки | D17: 7380
A18: 9 | B18: 254315 | C18: леггинсы | D18: 2070
A19: 7 | B19: 245445 | C19: мокасины | D19: 6180
A20: 6 | B20: С12267 | C20: сапоги | D20: 6930
A21: 5 | B21: CH9094 | C21: сапоги | D21: 11550
A22: 2 | B22: S49WP0018(SO99770) | C22: вечерние платья | D22: 9810
A23: 3 | B23: B1169 | C23: туфли | D23: 11280
A24: 8 | B24: 31613/600654 | C24: повседневные платья | D24: 5640
A25: 1 | B25: 232656 | C25: лонгсливы | D25: 2310
A26: 10 | B26: 460aktb999 | C26: полусапоги | D26: 5310
A27: 2 | B27: 269996/40 | C27: кроссовки | D27: 7560
A28: 8 | B28: 56/622/999 | C28: повседневные платья | D28: 8190
A29: 2 | B29: CSJ-NS-W-04 | C29: полусапоги | D29: 5300
A30: 10 | B30: R0000/00W09 | C30: подвески и бусы | D30: 4620
A31: 4 | B31: ANOUK/ | C31: туфли | D31: 34600
A32: 9 | B32: I36126/коричневый,синий | C32: туфли | D32: 27650
A33: 7 | B33: 234959 | C33: балетки | D33: 5640
A34: 8 | B34: 89180/630/C | C34: сумки | D34: 5580
A35: 6 | B35: 45365/98223чк | C35: повседневные платья | D35: 7380
A36: 7 | B36: 45365/98223кк | C36: повседневные платья | D36: 7380
A37: 2 | B37: 218403/1081 | C37: ботильоны | D37: 7800
A38: 4 | B38: SMS17 | C38: шарфы | D38: 1740
A39: 2 | B39: 256110 | C39: поло с коротким рукавом | D39: 3960
A40: 7 | B40: 24253 | C40: туфли | D40: 6780
A41: 5 | B41: GU58098/00 | C41: туфли | D41: 7050
A42: 6 | B42: JS17040 | C42: сапоги | D42: 11880
A43: 5 | B43: 24047/черн. | C43: туфли | D43: 6210
A44: 1 | B44: 24047/черн. | C44: туфли | D44: 6210
A45: 3 | B45: 232656 | C45: лонгсливы | D45: 2310
A46: 9 | B46: ANOUK/ | C46: туфли | D46: 33600
A47: 2 | B47: 254315 | C47: леггинсы | D47: 2070
A48: 2 | B48: 406C | C48: повседневные платья | D48: 4170
A49: 4 | B49: 56/622/999 | C49: вечерние платья | D49: 8190
A50: 2 | B50: 31613/600654 | C50: туфли | D50: 5640
A51: 9 | B51: 440 | C51: повседневные платья | D51: 5550
A52: 4 | B52: JULIE/02 | C52: сандалии | D52: 2700
A53: 1 | B53: 177287 | C53: сумки | D53: 24750
A54: 10 | B54: 6513 | C54: туфли | D54: 9720
A55: 2 | B55: 50150033/026 | C55: куртки | D55: 5640

Sheet Articles
A1: Article | B1: Count | C1: AGroup | D1: Price
A2: 56/622/999 | B2: =COUNTIF(Sales!B:B,Articles!A2) -> 3 | C2: =VLOOKUP(A2,Sales!$B:$D,2,0) -> повседневные платья | D2: =VLOOKUP(A2,Sales!$B:$D,3,0) -> 8190
A3: 254315 | B3: =COUNTIF(Sales!B:B,Articles!A3) -> 3 | C3: =VLOOKUP(A3,Sales!$B:$D,2,0) -> вечерние платья | D3: =VLOOKUP(A3,Sales!$B:$D,3,0) -> 2070
A4: M2MG021 | B4: =COUNTIF(Sales!B:B,Articles!A4) -> 2 | C4: =VLOOKUP(A4,Sales!$B:$D,2,0) -> топы | D4: =VLOOKUP(A4,Sales!$B:$D,3,0) -> 3120
A5: JULIE/02 | B5: =COUNTIF(Sales!B:B,Articles!A5) -> 2 | C5: =VLOOKUP(A5,Sales!$B:$D,2,0) -> сандалии | D5: =VLOOKUP(A5,Sales!$B:$D,3,0) -> 2700
A6: 45365/98223кк | B6: =COUNTIF(Sales!B:B,Articles!A6) -> 2 | C6: =VLOOKUP(A6,Sales!$B:$D,2,0) -> ботинки | D6: =VLOOKUP(A6,Sales!$B:$D,3,0) -> 7380
A7: 31613/600654 | B7: =COUNTIF(Sales!B:B,Articles!A7) -> 2 | C7: =VLOOKUP(A7,Sales!$B:$D,2,0) -> повседневные платья | D7: =VLOOKUP(A7,Sales!$B:$D,3,0) -> 5640
A8: 232656 | B8: =COUNTIF(Sales!B:B,Articles!A8) -> 2 | C8: =VLOOKUP(A8,Sales!$B:$D,2,0) -> лонгсливы | D8: =VLOOKUP(A8,Sales!$B:$D,3,0) -> 2310
A9: ANOUK/ | B9: =COUNTIF(Sales!B:B,Articles!A9) -> 2 | C9: =VLOOKUP(A9,Sales!$B:$D,2,0) -> туфли | D9: =VLOOKUP(A9,Sales!$B:$D,3,0) -> 34600
A10: 24047/черн. | B10: =COUNTIF(Sales!B:B,Articles!A10) -> 2 | C10: =VLOOKUP(A10,Sales!$B:$D,2,0) -> туфли | D10: =VLOOKUP(A10,Sales!$B:$D,3,0) -> 6210
A11: 189320/7240 | B11: =COUNTIF(Sales!B:B,Articles!A11) -> 1 | C11: =VLOOKUP(A11,Sales!$B:$D,2,0) -> туфли | D11: =VLOOKUP(A11,Sales!$B:$D,3,0) -> 10410
A12: 6177398/черн. | B12: =COUNTIF(Sales!B:B,Articles!A12) -> 1 | C12: =VLOOKUP(A12,Sales!$B:$D,2,0) -> туфли | D12: =VLOOKUP(A12,Sales!$B:$D,3,0) -> 23700
A13: 5/36/90970 | B13: =COUNTIF(Sales!B:B,Articles!A13) -> 1 | C13: =VLOOKUP(A13,Sales!$B:$D,2,0) -> сапоги | D13: =VLOOKUP(A13,Sales!$B:$D,3,0) -> 12870
A14: LF027/ | B14: =COUNTIF(Sales!B:B,Articles!A14) -> 1 | C14: =VLOOKUP(A14,Sales!$B:$D,2,0) -> пиджаки | D14: =VLOOKUP(A14,Sales!$B:$D,3,0) -> 7000
A15: 72GC494 | B15: =COUNTIF(Sales!B:B,Articles!A15) -> 1 | C15: =VLOOKUP(A15,Sales!$B:$D,2,0) -> туфли | D15: =VLOOKUP(A15,Sales!$B:$D,3,0) -> 1770
A16: 19sdp12/9s151 | B16: =COUNTIF(Sales!B:B,Articles!A16) -> 1 | C16: =VLOOKUP(A16,Sales!$B:$D,2,0) -> джинсы | D16: =VLOOKUP(A16,Sales!$B:$D,3,0) -> 4590
A17: 95/000 | B17: =COUNTIF(Sales!B:B,Articles!A17) -> 1 | C17: =VLOOKUP(A17,Sales!$B:$D,2,0) -> вечерние платья | D17: =VLOOKUP(A17,Sales!$B:$D,3,0) -> 16860
A18: 6152636 | B18: =COUNTIF(Sales!B:B,Articles!A18) -> 1 | C18: =VLOOKUP(A18,Sales!$B:$D,2,0) -> туфли | D18: =VLOOKUP(A18,Sales!$B:$D,3,0) -> 6240
A19: E1532 | B19: =COUNTIF(Sales!B:B,Articles!A19) -> 1 | C19: =VLOOKUP(A19,Sales!$B:$D,2,0) -> туфли | D19: =VLOOKUP(A19,Sales!$B:$D,3,0) -> 3300
A20: 2424/000 | B20: =COUNTIF(Sales!B:B,Articles!A20) -> 1 | C20: =VLOOKUP(A20,Sales!$B:$D,2,0) -> туфли | D20: =VLOOKUP(A20,Sales!$B:$D,3,0) -> 6960
A21: 245445 | B21: =COUNTIF(Sales!B:B,Articles!A21) -> 1 | C21: =VLOOKUP(A21,Sales!$B:$D,2,0) -> мокасины | D21: =VLOOKUP(A21,Sales!$B:$D,3,0) -> 6180
A22: С12267 | B22: =COUNTIF(Sales!B:B,Articles!A22) -> 1 | C22: =VLOOKUP(A22,Sales!$B:$D,2,0) -> сапоги | D22: =VLOOKUP(A22,Sales!$B:$D,3,0) -> 6930
A23: CH9094 | B23: =COUNTIF(Sales!B:B,Articles!A23) -> 1 | C23: =VLOOKUP(A23,Sales!$B:$D,2,0) -> сапоги | D23: =VLOOKUP(A23,Sales!$B:$D,3,0) -> 11550
A24: S49WP0018(SO99770) | B24: =COUNTIF(Sales!B:B,Articles!A24) -> 1 | C24: =VLOOKUP(A24,Sales!$B:$D,2,0) -> вечерние платья | D24: =VLOOKUP(A24,Sales!$B:$D,3,0) -> 9810
A25: B1169 | B25: =COUNTIF(Sales!B:B,Articles!A25) -> 1 | C25: =VLOOKUP(A25,Sales!$B:$D,2,0) -> туфли | D25: =VLOOKUP(A25,Sales!$B:$D,3,0) -> 11280
A26: 460aktb999 | B26: =COUNTIF(Sales!B:B,Articles!A26) -> 1 | C26: =VLOOKUP(A26,Sales!$B:$D,2,0) -> полусапоги | D26: =VLOOKUP(A26,Sales!$B:$D,3,0) -> 5310
A27: 269996/40 | B27: =COUNTIF(Sales!B:B,Articles!A27) -> 1 | C27: =VLOOKUP(A27,Sales!$B:$D,2,0) -> кроссовки | D27: =VLOOKUP(A27,Sales!$B:$D,3,0) -> 7560
A28: CSJ-NS-W-04 | B28: =COUNTIF(Sales!B:B,Articles!A28) -> 1 | C28: =VLOOKUP(A28,Sales!$B:$D,2,0) -> полусапоги | D28: =VLOOKUP(A28,Sales!$B:$D,3,0) -> 5300
A29: R0000/00W09 | B29: =COUNTIF(Sales!B:B,Articles!A29) -> 1 | C29: =VLOOKUP(A29,Sales!$B:$D,2,0) -> подвески и бусы | D29: =VLOOKUP(A29,Sales!$B:$D,3,0) -> 4620
A30: I36126/коричневый,синий | B30: =COUNTIF(Sales!B:B,Articles!A30) -> 1 | C30: =VLOOKUP(A30,Sales!$B:$D,2,0) -> туфли | D30: =VLOOKUP(A30,Sales!$B:$D,3,0) -> 27650
A31: 234959 | B31: =COUNTIF(Sales!B:B,Articles!A31) -> 1 | C31: =VLOOKUP(A31,Sales!$B:$D,2,0) -> балетки | D31: =VLOOKUP(A31,Sales!$B:$D,3,0) -> 5640
A32: 89180/630/C | B32: =COUNTIF(Sales!B:B,Articles!A32) -> 1 | C32: =VLOOKUP(A32,Sales!$B:$D,2,0) -> сумки | D32: =VLOOKUP(A32,Sales!$B:$D,3,0) -> 5580
A33: 45365/98223чк | B33: =COUNTIF(Sales!B:B,Articles!A33) -> 1 | C33: =VLOOKUP(A33,Sales!$B:$D,2,0) -> повседневные платья | D33: =VLOOKUP(A33,Sales!$B:$D,3,0) -> 7380
A34: 218403/1081 | B34: =COUNTIF(Sales!B:B,Articles!A34) -> 1 | C34: =VLOOKUP(A34,Sales!$B:$D,2,0) -> ботильоны | D34: =VLOOKUP(A34,Sales!$B:$D,3,0) -> 7800
A35: SMS17 | B35: =COUNTIF(Sales!B:B,Articles!A35) -> 1 | C35: =VLOOKUP(A35,Sales!$B:$D,2,0) -> шарфы | D35: =VLOOKUP(A35,Sales!$B:$D,3,0) -> 1740
A36: 256110 | B36: =COUNTIF(Sales!B:B,Articles!A36) -> 1 | C36: =VLOOKUP(A36,Sales!$B:$D,2,0) -> поло с коротким рукавом | D36: =VLOOKUP(A36,Sales!$B:$D,3,0) -> 3960
A37: 24253 | B37: =COUNTIF(Sales!B:B,Articles!A37) -> 1 | C37: =VLOOKUP(A37,Sales!$B:$D,2,0) -> туфли | D37: =VLOOKUP(A37,Sales!$B:$D,3,0) -> 6780
A38: GU58098/00 | B38: =COUNTIF(Sales!B:B,Articles!A38) -> 1 | C38: =VLOOKUP(A38,Sales!$B:$D,2,0) -> туфли | D38: =VLOOKUP(A38,Sales!$B:$D,3,0) -> 7050
A39: JS17040 | B39: =COUNTIF(Sales!B:B,Articles!A39) -> 1 | C39: =VLOOKUP(A39,Sales!$B:$D,2,0) -> сапоги | D39: =VLOOKUP(A39,Sales!$B:$D,3,0) -> 11880
A40: 406C | B40: =COUNTIF(Sales!B:B,Articles!A40) -> 1 | C40: =VLOOKUP(A40,Sales!$B:$D,2,0) -> повседневные платья | D40: =VLOOKUP(A40,Sales!$B:$D,3,0) -> 4170
A41: 440 | B41: =COUNTIF(Sales!B:B,Articles!A41) -> 1 | C41: =VLOOKUP(A41,Sales!$B:$D,2,0) -> повседневные платья | D41: =VLOOKUP(A41,Sales!$B:$D,3,0) -> 5550
A42: 177287 | B42: =COUNTIF(Sales!B:B,Articles!A42) -> 1 | C42: =VLOOKUP(A42,Sales!$B:$D,2,0) -> сумки | D42: =VLOOKUP(A42,Sales!$B:$D,3,0) -> 24750
A43: 6513 | B43: =COUNTIF(Sales!B:B,Articles!A43) -> 1 | C43: =VLOOKUP(A43,Sales!$B:$D,2,0) -> туфли | D43: =VLOOKUP(A43,Sales!$B:$D,3,0) -> 9720
A44: 50150033/026 | B44: =COUNTIF(Sales!B:B,Articles!A44) -> 1 | C44: =VLOOKUP(A44,Sales!$B:$D,2,0) -> куртки | D44: =VLOOKUP(A44,Sales!$B:$D,3,0) -> 5640
